bitfinex-derivatives/quotes_SOLF0:USTF0_20250818
["timestamp","ask_amount","ask_price","bid_price","bid_amount"]
[1755477732602,2.82,190.35,190.28,7.20874689]
[1755477732900,2.82,190.35,190.29,5.2516]
[1755477733703,2.82,190.35,190.28,8.42864689]
[1755477734097,2.82,190.35,190.28,1.95674689]
[1755477734907,353.28,190.42,190.32,1.22]
[1755477735110,4.77674689,190.4,190.3,1.22]
[1755477735406,2.82,190.38,190.27,5.252]
[1755477735704,2.82,190.36,190.26,3.17674689]
[1755477735896,2.82,190.36,190.27,1.22]
[1755477736098,2.82,190.36,190.3,5.2514]
[1755477737800,2.82,190.36,190.31,5.2511]
[1755477738006,2.82,190.36,190.31,1.23]
[1755477738208,2.82,190.36,190.3,1.23]
[1755477740208,2.82,190.36,190.32,1.23]
[1755477740805,2.81,190.41,190.32,3.18674689]
[1755477741005,353.28,190.42,190.32,3.18674689]
[1755477741006,2.81,190.39,190.32,3.18674689]
[1755477741308,2.81,190.37,190.33,1.23]
[1755477741502,353.28,190.42,190.34,6.4801]
[1755477741706,2.81,190.35,190.34,6.4801]
[1755477741906,2.81,190.37,190.34,6.4801]
[1755477742103,2.81,190.43,190.34,1.23]
[1755477742302,2.81,190.41,190.34,1.23]
[1755477743003,2.81,190.41,190.32,3.18674689]
[1755477743308,2.81,190.39,190.32,6.4807]
[1755477744109,2.81,190.39,190.31,1.95674689]
[1755477744609,2.81,190.37,190.31,1.95674689]
[1755477744814,2.81,190.37,190.29,1.23]
[1755477745014,2.81,190.37,190.28,1.95674689]
[1755477745712,2.81,190.35,190.28,1.95674689]
[1755477745907,2.81,190.35,190.25,3.18674689]
[1755477746106,2.81,190.33,190.25,1.95674689]
[1755477746306,4.37703866,190.32,190.25,1.95674689]
[1755477746606,2.81,190.31,190.25,1.95674689]
[1755477747314,2.81,190.31,190.2,353.0]
[1755477747315,2.81,190.31,190.22,3.18674689]
[1755477747511,4.37823253,190.3,190.22,1.23]
[1755477747708,2.81,190.29,190.2,361.44094689]
[1755477748011,2.81,190.29,190.2,8.44094689]
[1755477748316,2.81,190.29,190.2,3.18674689]
[1755477749921,2.81,190.29,190.21,1.23]
[1755477751014,2.81,190.29,190.11,132.72]
[1755477751015,12.0575227,190.28,190.18,1.23]
[1755477751207,2.81,190.26,190.18,1.23]
[1755477751412,2.81,190.26,190.17,1.95674689]
[1755477751413,4.38159275,190.25,190.17,1.95674689]
[1755477751608,2.81,190.24,190.17,1.95674689]
[1755477751812,2.81,190.24,190.16,1.23]
[1755477754915,2.81,190.24,190.18,1.23]
[1755477755111,2.81,190.24,190.2,1.95674689]
[1755477755312,2.81,190.33,190.21,1.23]
[1755477755513,2.81,190.31,190.21,1.23]
[1755477755715,2.81,190.29,190.21,1.23]
[1755477755912,2.81,190.27,190.21,1.23]
[1755477756326,2.81,190.27,190.21,3.18674689]
[1755477756523,2.81,190.27,190.21,8.44044689]
[1755477757418,2.81,190.34,190.24,1.23]
[1755477757619,2.81,190.32,190.24,1.23]
[1755477757818,1.95674689,190.35,190.24,1.23]
[1755477757819,2.81,190.3,190.24,1.23]
[1755477758016,3.76761232,190.29,190.24,1.23]
[1755477758215,2.81,190.28,190.24,1.23]
[1755477758422,2.81,190.28,190.22,6.4836]
[1755477758620,2.81,190.28,190.22,1.23]
[1755477759019,4.39119742,190.27,190.21,1.95674689]
[1755477759218,2.81,190.26,190.18,3.18674689]
[1755477759425,4.39301997,190.25,190.18,1.95674689]
[1755477759625,2.81,190.24,190.18,1.95674689]
[1755477761329,2.81,190.24,190.15,1.95674689]
[1755477761733,2.81,190.24,190.15,3.18674689]
[1755477762626,2.81,190.24,190.18,1.95674689]
[1755477762825,2.81,190.24,190.18,3.18674689]
[1755477763434,1.95674689,190.29,190.18,8.44144689]
[1755477763733,2.81,190.27,190.19,1.26377284]
[1755477763930,2.81,190.25,190.19,0.03377284]
[1755477772937,1.95674689,190.23,190.19,0.03377284]
[1755477773133,3.08,190.22,190.19,0.03377284]
[1755477773345,3.08,190.22,190.13,1.22]
[1755477774040,3.08,190.22,190.16,0.03415688]
[1755477775447,1.95674689,190.2,190.16,0.03415688]
[1755477775645,3.08,190.19,190.16,0.03415688]
[1755477775840,3.08,190.22,190.16,0.03415688]
[1755477776039,3.08,190.22,190.14,1.22]
[1755477778046,3.08,190.22,190.16,1.22]
[1755477778250,3.08,190.22,190.16,1.25355687]
[1755477778952,3.08,190.28,190.18,1.22]
[1755477779146,8.15831287,190.27,190.18,1.22]
[1755477779348,6.84775079,190.26,190.18,1.22]
[1755477779543,3.08,190.25,190.18,1.22]
[1755477780540,3.08,190.25,190.16,1.22]
[1755477780948,3.08,190.25,190.13,5.256]
[1755477781143,3.08,190.23,190.14,1.22]
[1755477781453,3.08,190.23,190.14,6.4758]
[1755477781855,3.08,190.23,190.15,1.22]
[1755477783149,3.08,190.23,190.16,1.22]
[1755477784752,1.95674689,190.29,190.18,5.2547]
[1755477784946,12.04705699,190.28,190.19,1.22]
[1755477785151,3.08,190.2,190.15,1.22]
[1755477785958,3.08,190.2,190.16,5.2551]
[1755477786260,3.08,190.22,190.17,1.22]
[1755477786450,3.08,190.21,190.17,1.22]
[1755477786754,3.08,190.25,190.17,1.22]
[1755477787061,3.08,190.23,190.17,1.22]
[1755477787557,3.08,190.23,190.16,0.03367191]
[1755477788354,3.08,190.23,190.16,1.25367191]
[1755477789067,3.08,190.23,190.17,1.22]
[1755477789562,3.08,190.21,190.17,1.22]
[1755477789765,3.08,190.21,190.16,0.03367191]
[1755477789766,3.78345966,190.2,190.16,0.03367191]
[1755477789964,3.08,190.19,190.16,0.03367191]
[1755477790558,3.08,190.17,190.16,0.03367191]
[1755477793363,5.69364873,190.25,190.16,0.03367191]
[1755477793566,3.08,190.23,190.16,1.25367191]
[1755477793767,3.08,190.21,190.16,1.25367191]
[1755477794761,3.08,190.21,190.16,0.03367191]
[1755477795870,3.08,190.19,190.16,0.03367191]
[1755477796064,3.08,190.17,190.16,0.03367191]
[1755477798064,6.86965071,190.17,190.16,0.03367191]
[1755477798363,3.08,190.17,190.16,0.03367191]
[1755477801672,6.86913839,190.17,190.16,0.03367191]
[1755477802161,11.28373154,190.17,190.16,0.03367191]
[1755477802871,6.86913839,190.17,190.16,0.03367191]
[1755477803171,11.28406143,190.17,190.16,0.03367191]
[1755477804163,3.08,190.17,190.16,1.26367191]
[1755477804462,3.0,190.25,190.16,1.26367191]
[1755477804665,3.0,190.23,190.16,1.26367191]
[1755477804971,3.0,190.21,190.16,0.03367191]
[1755477805175,3.0,190.19,190.16,0.03367191]
[1755477805375,3.0,190.17,190.16,0.03367191]
[1755477805667,11.20747453,190.17,190.16,0.03367191]
[1755477805874,3.0,190.19,190.17,1.23]
[1755477806468,3.0,190.18,190.17,1.23]
[1755477806680,3.0,190.18,190.16,0.03367191]
[1755477806973,3.0,190.18,190.16,1.26367191]
[1755477807472,3.0,190.17,190.16,0.03367191]
[1755477808975,6.79111147,190.17,190.16,0.03367191]
[1755477810879,11.20259933,190.17,190.16,0.03367191]
[1755477811468,3.0,190.17,190.16,0.03367191]
[1755477811673,3.0,190.17,190.16,1.26367191]
[1755477811982,3.0,190.17,190.16,0.03367191]
[1755477812680,6.79216899,190.17,190.16,0.03367191]
[1755477816585,11.20640473,190.17,190.16,0.03367191]
[1755477819386,15.04362128,190.17,190.16,0.03367191]
[1755477821287,15.02933906,190.17,190.16,0.03367191]
[1755477822376,11.20516036,190.17,190.16,1.26367191]
[1755477822777,6.79216899,190.17,190.16,1.26367191]
[1755477825690,6.79216899,190.17,190.16,0.03367191]
[1755477827389,6.79216899,190.17,190.16,1.26367191]
[1755477827788,6.79216899,190.17,190.16,0.03367191]
[1755477828996,11.20468647,190.17,190.16,0.03367191]
[1755477830289,6.79216899,190.17,190.16,0.03367191]
[1755477830488,11.20571529,190.17,190.16,0.03367191]
[1755477831896,3.79216899,190.17,190.16,1.25367191]
[1755477832090,2.78,190.18,190.16,0.03367191]
[1755477832490,2.78,190.2,190.16,0.03367191]
[1755477832694,2.78,190.2,190.17,1.22]
[1755477833088,2.78,190.24,190.18,1.22]
[1755477833298,2.78,190.22,190.16,0.03367191]
[1755477833487,2.78,190.2,190.16,0.03367191]
[1755477833793,2.78,190.18,190.16,0.03367191]
[1755477833990,2.78,190.2,190.17,1.22]
[1755477834186,2.78,190.19,190.18,1.22]
[1755477836494,2.78,190.24,190.17,1.22]
[1755477836801,2.78,190.22,190.17,1.22]
[1755477836993,8.214174,190.21,190.17,1.22]
[1755477837194,2.78,190.19,190.17,1.22]
[1755477837391,2.78,190.18,190.17,1.22]
[1755477838705,132.38,190.25,190.17,1.22]
[1755477838903,2.78,190.23,190.18,1.22]
[1755477839196,8.22833353,190.22,190.19,1.22]
[1755477839398,2.78,190.2,190.16,0.03367191]
[1755477839592,2.78,190.26,190.17,1.22]
[1755477839795,2.78,190.24,190.17,1.22]
[1755477840095,2.78,190.22,190.16,1.22]
[1755477840295,2.78,190.2,190.16,1.22]
[1755477840494,2.78,190.19,190.16,1.22]
[1755477840896,2.78,190.26,190.14,1.22]
[1755477841092,2.78,190.24,190.14,1.22]
[1755477841297,2.78,190.22,190.14,1.22]
[1755477841500,2.78,190.2,190.14,1.22]
[1755477841799,3.79959636,190.19,190.15,1.22]
[1755477842002,2.78,190.17,190.15,1.22]
[1755477842194,1.95674689,190.24,190.13,1.22]
[1755477842388,2.78,190.22,190.13,6.476]
[1755477842590,2.78,190.2,190.14,1.22]
[1755477842904,2.78,190.18,190.14,1.22]
[1755477843090,2.78,190.18,190.15,1.22]
[1755477843499,2.78,190.17,190.16,1.22]
[1755477843996,2.78,190.17,190.12,7.21304689]
[1755477844203,2.78,190.23,190.13,1.22]
[1755477844403,2.78,190.2,190.09,1.95674689]
[1755477844702,2.78,190.18,190.09,1.22]
[1755477844903,2.78,190.16,190.09,1.22]
[1755477847706,3.79956077,190.15,190.09,1.22]
[1755477847901,2.78,190.16,190.09,1.22]
[1755477848102,2.78,190.14,190.08,1.22]
[1755477848403,2.78,190.14,190.09,1.22]
[1755477848705,2.78,190.14,190.1,1.22]
[1755477849206,2.78,190.21,190.07,1.22]
[1755477849507,2.78,190.19,190.1,1.22]
[1755477849705,12.05370693,190.18,190.1,1.22]
[1755477849902,2.78,190.15,190.06,1.22]
[1755477850105,2.78,190.13,190.04,1.22]
[1755477850404,1.95674689,190.16,190.03,82.6349422]
[1755477850405,3.79925606,190.12,190.06,1.95674689]
[1755477850706,2.78,190.19,190.1,1.22]
[1755477850907,2.78,190.17,190.1,1.22]
[1755477851100,2.78,190.15,190.09,1.95674689]
[1755477851297,2.78,190.13,190.06,3.17674689]
[1755477851699,2.78,190.13,190.06,8.43474689]
[1755477851900,2.78,190.13,190.07,1.22]
[1755477853313,2.78,190.13,190.08,1.22]
[1755477853496,2.78,190.13,190.07,5.2577]
[1755477853709,2.78,190.13,190.09,1.22]
[1755477854206,2.78,190.13,190.07,1.22]
[1755477856112,2.78,190.13,190.07,6.4777]
[1755477857012,2.78,190.13,190.07,1.22]
[1755477857408,3.8153243,190.12,190.05,6.4783]
[1755477857615,2.78,190.13,190.05,6.4783]
[1755477857813,2.82,190.11,190.05,6.4783]
[1755477858909,2.82,190.15,190.07,1.23]
[1755477859208,1.95674689,190.16,190.07,5.2576]
[1755477859209,2.82,190.13,190.07,5.2576]
[1755477859409,2.82,190.12,190.08,1.23]
[1755477859611,2.82,190.11,190.08,1.23]
[1755477859913,1.95674689,190.19,190.09,3.18674689]
[1755477859914,2.82,190.13,190.09,3.18674689]
[1755477860110,2.82,190.13,190.1,1.23]
[1755477860310,2.82,190.18,190.08,5.2574]
[1755477860515,2.82,190.16,190.08,5.2574]
[1755477860814,2.82,190.14,190.08,5.2574]
[1755477862816,2.82,190.14,190.07,6.4877]
[1755477863816,3.81339344,190.13,190.07,6.4877]
[1755477864117,2.82,190.14,190.07,6.4877]
[1755477864319,2.82,190.12,190.07,6.4877]
[1755477864512,2.82,190.12,190.08,1.23]
[1755477864913,2.82,190.18,190.09,1.23]
[1755477865106,12.0601952,190.17,190.09,1.23]
[1755477865306,2.82,190.15,190.09,1.23]
[1755477865513,2.82,190.13,190.07,6.4877]
[1755477866218,2.82,190.13,190.07,1.23]
[1755477866710,2.82,190.13,190.05,6.4882]
[1755477867112,2.82,190.13,190.05,1.23]
[1755477867316,2.82,190.13,190.08,1.23]
[1755477867615,2.82,190.13,190.09,1.23]
[1755477868207,2.82,190.13,190.07,1.23]
[1755477869016,2.82,190.13,190.05,6.4882]
[1755477869221,2.82,190.11,190.03,1.23]
[1755477871122,2.82,190.09,190.03,1.23]
[1755477872715,2.82,190.09,190.01,1.95674689]
[1755477872915,2.82,190.09,190.01,1.23]
[1755477877327,2.82,190.09,189.99,5.2599]
[1755477877628,2.82,190.09,189.99,6.4899]
[1755477877829,2.82,190.06,189.96,1.23]
[1755477878327,2.82,190.06,189.97,1.23]
[1755477879633,2.82,190.03,189.94,1.23]
[1755477882432,2.82,190.03,189.94,5.2613]
[1755477882738,2.82,190.03,189.92,1.23]
[1755477882941,2.82,190.03,189.93,5.2614]
[1755477883137,2.82,190.03,189.94,1.23]
[1755477886535,2.82,190.03,189.94,5.2612]
[1755477886735,2.82,190.03,189.95,1.23]
[1755477887137,2.82,190.03,189.96,1.23]
[1755477887739,2.82,190.03,189.98,1.23]
[1755477888136,3.05,190.05,190.0,5.2596]
[1755477888336,3.05,190.04,190.01,1.23]
[1755477888741,3.05,190.04,190.02,1.23]
[1755477889043,3.05,190.04,190.03,1.23]
[1755477889638,3.05,190.04,190.0,7.21634689]
[1755477889835,3.05,190.03,190.02,1.23]
[1755477890035,3.05,190.03,190.0,7.21634689]
[1755477890346,3.05,190.1,189.99,1.23]
[1755477890538,3.05,190.08,189.99,1.23]
[1755477890735,3.05,190.06,189.99,1.23]
[1755477891235,3.05,190.06,190.0,1.23]
[1755477892735,3.05,190.06,190.0,3.18674689]
[1755477892940,3.05,190.06,190.0,1.95674689]
[1755477893146,3.05,190.06,190.02,1.23]
[1755477894545,353.48,190.12,190.0,7.21614689]
[1755477894546,3.05,190.11,190.01,1.23]
[1755477894747,3.05,190.09,190.01,1.23]
[1755477895046,3.05,190.09,190.04,1.23]
[1755477895845,3.05,190.09,190.03,1.95674689]
[1755477896046,3.05,190.09,190.0,8.44624689]
[1755477896441,3.05,190.09,190.01,1.23]
[1755477896645,3.05,190.09,190.04,1.23]
[1755477897748,3.05,190.09,190.05,1.23]
[1755477900646,3.05,190.09,190.03,1.95674689]
[1755477900951,3.05,190.09,189.99,1.23]
[1755477901149,1.95674689,190.07,189.95,133.91674689]
[1755477901349,1.95674689,190.07,189.89,441.15599212]
[1755477901350,3.05,190.03,189.9,1.23]
[1755477901546,3.80139641,190.02,189.9,1.23]
[1755477901854,3.05,190.01,189.94,1.23]
[1755477904542,3.05,190.01,189.96,1.23]
[1755477904751,3.05,190.03,189.99,1.23]
[1755477904954,1.95674689,190.1,189.98,1.95674689]
[1755477905145,3.05,190.01,190.0,1.23]
[1755477905350,3.05,190.09,190.0,1.23]
[1755477905544,3.05,190.07,190.0,1.23]
[1755477906555,3.05,190.07,190.01,6.4893]
[1755477906753,3.05,190.07,190.01,1.23]
[1755477906952,3.05,190.12,190.01,1.95674689]
[1755477907255,3.05,190.12,190.02,1.23]
[1755477907454,3.05,190.12,190.04,1.95674689]
[1755477907652,3.05,190.12,190.05,1.23]
[1755477907949,3.80579198,190.11,190.02,6.4888]
[1755477908153,3.05,190.1,190.02,1.23]
[1755477908456,3.05,190.1,190.04,1.95674689]
[1755477908660,3.05,190.1,190.06,1.23]
[1755477909357,1.95674689,190.16,190.06,1.23]
[1755477909550,3.05,190.08,190.06,1.23]
[1755477909753,1.95674689,190.16,190.06,1.23]
[1755477909955,3.05,190.14,190.04,3.18674689]
[1755477910158,3.05,190.12,190.02,1.23]
[1755477910460,3.05,190.1,190.04,1.23]
[1755477910653,3.05,190.1,190.05,1.23]
[1755477910852,3.05,190.15,190.05,1.23]
[1755477911148,3.05,190.13,190.05,1.23]
[1755477911357,3.05,190.11,190.05,1.23]
[1755477913262,3.05,190.11,190.05,6.4882]
[1755477914763,3.05,190.11,190.05,1.23]
[1755477914963,3.05,190.11,190.03,1.23]
[1755477915354,3.05,190.09,190.03,1.23]
[1755477915556,3.05,190.09,190.01,3.18674689]
[1755477915959,3.05,190.09,190.01,1.95674689]
[1755477916664,3.05,190.15,190.05,1.23]
[1755477916863,3.05,190.13,190.05,1.23]
[1755477917065,3.05,190.11,190.06,5.2579]
[1755477917366,3.05,190.11,190.06,6.4879]
[1755477917967,2.82,190.1,190.08,1.23]
[1755477918364,2.82,190.18,190.08,1.23]
[1755477918563,2.82,190.16,190.08,1.23]
[1755477918862,2.82,190.14,190.08,1.23]
[1755477919061,2.82,190.14,190.08,6.4872]
[1755477919762,2.82,190.14,190.08,1.23]
[1755477919964,2.82,190.14,190.05,1.23]
[1755477920358,2.82,190.14,190.07,1.95674689]
[1755477920555,2.82,190.14,190.08,1.23]
[1755477920759,2.82,190.14,190.09,5.2571]
[1755477920959,2.82,190.14,190.09,6.4871]
[1755477921256,2.82,190.21,190.11,1.23]
[1755477921457,2.82,190.19,190.13,6.486]
[1755477921768,2.82,190.19,190.11,1.23]
[1755477921968,2.82,190.19,190.12,5.2563]
[1755477923162,2.82,190.19,190.12,6.4863]
[1755477925466,2.82,190.19,190.13,5.2559]
[1755477925671,2.82,190.19,190.13,3.18674689]
[1755477926472,2.82,190.19,190.13,1.95674689]
[1755477926670,2.82,190.19,190.1,3.18674689]
[1755477926972,2.82,190.18,190.09,5.2571]
[1755477927173,2.82,190.18,190.08,1.23]
[1755477927570,2.82,190.18,190.07,1.95674689]
[1755477927571,2.82,190.18,190.1,1.95674689]
[1755477927769,2.82,190.18,190.11,1.23]
[1755477928172,2.82,190.18,190.11,6.4866]
[1755477929274,2.82,190.18,190.11,5.2566]
[1755477929575,2.82,190.18,190.1,6.4869]
[1755477929770,2.82,190.18,190.11,1.23]
[1755477929973,2.82,190.18,190.13,5.2561]
[1755477930170,2.82,190.21,190.14,1.23]
[1755477930478,2.82,190.19,190.14,1.23]
[1755477930877,2.82,190.19,190.12,1.23]
[1755477931077,2.82,190.19,190.1,1.23]
[1755477931474,2.82,190.19,190.11,1.23]
[1755477931978,2.82,190.19,190.09,6.487]
[1755477933584,2.82,190.19,190.1,5.2569]
[1755477933783,2.82,190.19,190.1,6.4869]
[1755477935281,2.82,190.19,190.1,1.23]
[1755477936387,2.82,190.19,190.1,5.2568]
[1755477936592,2.82,190.19,190.11,1.23]
[1755477936990,2.82,190.19,190.09,5.2572]
[1755477937186,2.82,190.17,190.09,1.23]
[1755477937486,1.95674689,190.15,190.06,1.23]
[1755477937687,6.60974015,190.14,190.06,1.23]
[1755477937890,2.82,190.14,190.06,1.23]
[1755477939491,2.82,190.12,190.05,1.95674689]
[1755477939682,2.82,190.12,190.06,1.23]
[1755477939995,2.82,190.16,190.09,1.23]
[1755477940194,2.82,190.16,190.1,5.2569]
[1755477940498,2.82,190.16,190.08,1.95674689]
[1755477940696,2.82,190.16,190.12,1.23]
[1755477941699,2.82,190.16,190.1,5.2569]
[1755477942087,2.82,190.16,190.1,6.4869]
[1755477945506,2.82,190.16,190.1,1.23]
[1755477946304,2.82,190.16,190.11,1.23]
[1755477946505,2.82,190.16,190.12,1.23]
[1755477949703,2.82,190.16,190.1,1.22]
[1755477952306,2.82,190.16,190.1,5.2569]
[1755477952505,2.82,190.16,190.11,1.22]
[1755477952907,2.82,190.16,190.1,5.2569]
[1755477953204,2.82,190.16,190.12,1.22]
[1755477953406,2.82,190.16,190.1,5.2569]
[1755477953407,2.89,190.16,190.1,1.22]
[1755477953704,2.89,190.2,190.13,1.22]
[1755477953905,2.89,190.2,190.17,5.2548]
[1755477954106,2.89,190.2,190.18,1.22]
[1755477954307,2.89,190.19,190.18,1.22]
[1755477955100,2.89,190.19,190.14,1.22]
[1755477955401,2.89,190.19,190.13,1.22]
[1755477955609,2.89,190.18,190.16,1.22]
[1755477955808,2.89,190.25,190.13,1.22]
[1755477956109,2.89,190.23,190.13,1.22]
[1755477956310,2.89,190.21,190.15,5.2555]
[1755477957014,2.89,190.21,190.15,6.4755]
[1755477957605,2.89,190.25,190.16,6.4753]
[1755477957908,2.89,190.25,189.95,76.34754309]
[1755477957909,2.89,190.23,190.17,1.22]
[1755477958107,2.89,190.21,190.18,5.2546]
[1755477958303,2.89,190.21,190.19,1.22]
[1755477958500,2.89,190.21,190.2,1.22]
[1755477958808,2.89,190.21,190.2,6.4742]
[1755477959106,2.89,190.25,190.2,6.4742]
[1755477959405,131.58,190.26,190.22,1.22]
[1755477959406,2.89,190.24,190.22,1.22]
[1755477959711,2.89,190.23,190.22,1.22]
[1755477960711,2.89,190.22,190.21,1.22]
[1755477960910,2.89,190.24,190.21,1.22]
[1755477961208,2.89,190.23,190.2,1.22]
[1755477961412,2.89,190.3,190.2,1.22]
[1755477961707,2.89,190.28,190.17,1.22]
[1755477961912,2.89,190.26,190.17,1.22]
[1755477962100,2.89,190.24,190.15,1.22]
[1755477962306,2.89,190.22,190.15,1.22]
[1755477962710,2.89,190.22,190.13,1.95674689]
[1755477962912,2.89,190.22,190.18,1.22]
[1755477963217,2.89,190.22,190.16,6.4753]
[1755477964210,2.89,190.22,190.17,5.255]
[1755477964416,2.89,190.22,190.18,1.22]
[1755477965101,1.95674689,190.29,190.16,7.21194689]
[1755477965308,2.89,190.26,190.19,3.17674689]
[1755477965502,2.89,190.23,190.2,1.22]
[1755477965707,2.89,190.29,190.19,3.17674689]
[1755477966002,2.89,190.27,190.19,8.43124689]
[1755477966311,2.89,190.25,190.16,3.17674689]
[1755477966507,3.78779317,190.24,190.16,3.17674689]
[1755477966712,2.89,190.23,190.17,1.22]
[1755477967122,2.89,190.23,190.18,5.2548]
[1755477967617,2.89,190.23,190.19,1.22]
[1755477969511,2.89,190.23,190.13,1.22]
[1755477969811,2.89,190.21,190.1,1.22]
[1755477970216,2.89,190.18,190.1,1.22]
[1755477970411,2.89,190.18,190.08,1.22]
[1755477971117,2.89,190.18,190.08,6.4774]
[1755477971619,1.95674689,190.16,190.05,1.95674689]
[1755477971814,2.89,190.12,190.03,1.22]
[1755477972721,2.89,190.12,190.03,6.4787]
[1755477973014,2.89,190.12,190.03,1.22]
[1755477974320,2.89,190.12,190.05,1.22]
[1755477974618,2.89,190.12,190.06,1.22]
[1755477975816,2.89,190.17,190.08,1.22]
[1755477976208,2.89,190.17,190.1,6.4769]
[1755477976808,2.89,190.17,190.11,6.4767]
[1755477977410,131.48,190.2,190.12,5.2563]
[1755477977617,2.89,190.18,190.07,1.22]
[1755477978019,2.89,190.18,190.12,6.4864]
[1755477978214,2.89,190.18,190.13,1.23]
[1755477979320,2.89,190.18,190.13,6.4861]
[1755477983721,2.89,190.18,190.12,5.2564]
[1755477984418,2.89,190.18,190.13,5.2562]
[1755477985016,2.89,190.18,190.08,1.23]
[1755477985224,3.07,190.16,190.06,1.23]
[1755477985524,3.07,190.16,190.08,5.2573]
[1755477985720,3.07,190.16,190.06,1.23]
[1755477986220,3.07,190.16,190.08,1.23]
[1755477986624,3.07,190.23,190.12,1.23]
[1755477986825,3.07,190.21,190.12,1.23]
[1755477987413,3.07,190.21,190.15,5.2554]
[1755477987619,3.07,190.21,190.14,1.23]
[1755477987918,3.07,190.21,190.12,1.23]
[1755477988219,3.07,190.21,190.15,5.2556]
[1755477990127,3.07,190.19,190.11,1.23]
[1755477990626,3.07,190.19,190.12,5.2564]
[1755477990824,3.07,190.19,190.11,1.23]
[1755477991022,3.07,190.19,190.11,4.5415783]
[1755477991325,3.07,190.25,190.15,6.4855]
[1755477991521,3.07,190.23,190.15,6.4855]
[1755477991722,3.07,190.21,190.15,6.4855]
[1755477992823,3.07,190.21,190.15,5.2555]
[1755477993328,3.07,190.21,190.16,5.2554]
[1755477993524,3.07,190.21,190.17,1.23]
[1755477993723,3.07,190.21,190.16,5.2554]
[1755477994828,3.07,190.21,190.16,6.4854]
[1755477995222,3.07,190.21,190.16,5.2554]
[1755477995528,3.07,190.21,190.17,1.23]
[1755477997536,3.07,190.21,190.16,5.2554]
[1755477997735,3.07,190.21,190.15,6.4856]
[1755477997933,3.07,190.21,190.15,1.23]
[1755477999238,3.07,190.21,190.15,5.2556]
[1755478000635,3.07,190.21,190.15,6.4856]
[1755478002334,3.07,190.21,190.16,6.4853]
[1755478002530,3.07,190.21,190.16,1.23]
[1755478002935,3.07,190.21,190.14,3.18030453]
[1755478003338,3.07,190.21,190.15,5.2556]
[1755478003542,3.07,190.21,190.15,1.23]
[1755478003748,3.07,190.21,190.16,5.2554]
[1755478003944,3.07,190.21,190.15,1.23]
[1755478004253,3.07,190.21,190.14,1.95030453]
[1755478004751,3.07,190.21,190.14,7.20620453]
[1755478006247,3.07,190.21,190.14,5.2559]